{"text_format":"1","workbook":"xlsx","n_sheets":4,"sheets":["الرئيسية","جرد المستودع لعام ( تقني)المسلم","الجهات واماكن تواجد","المطلوب"],"not_rendered":{"charts":0,"images":3,"macros":1,"external_links":2,"defined_names":32,"comments":0,"pivot_tables":0},"unopened":[],"bounds":{"document_bytes":16777216,"sheet_cells":100000,"rows_first":2000,"rows_last":500,"rows_between":2000,"halvings":0,"cell_chars":16384,"cell_head_chars":4096},"cells_cut":0,"cells_raw":0,"read":"whole","date_system":"1900"}

{"sheet":"الرئيسية","index":0,"n_rows":8,"n_cols":16,"rows_kept":8,"cut":false,"hidden":false,"merged":[[11,3,11,16],[3,3,3,16],[5,3,5,16],[7,3,7,4],[7,5,7,14],[7,15,7,16]]}
[]
[]
[]
[]
[]
[]
[]
[null,null,null,"Exit",null,null,null,null,null,null,null,null,null,null,null,"Save"]

{"sheet":"جرد المستودع لعام ( تقني)المسلم","index":1,"n_rows":484,"n_cols":15,"rows_kept":484,"cut":false,"hidden":false,"merged":[]}
["تسلسل","الرمز الخاص بالاصل","اسم الأصل","وصف الأصل","رقم مذكرة الإدخال","الحالة الفنية","السعر","الكمية","السعر الإجمالي","الجهة المستلمة","مكان تواجد الأصل","اسم المستلم","تاريخ الإستلام","ملاحظات"]
[{"$f":"IF(B2=\"\",\"\",ROW()-1)","v":1},"L01","لابتوب ","cori3-ram4-hdd500-dell",1,"جديد",500,1,{"$f":"IFERROR(G2*H2,\"\")","v":500},"جهة33","مكتب 300"]
[{"$f":"IF(B3=\"\",\"\",ROW()-1)","v":""},null,null,null,null,"مستعمل بحالة جيدة",null,null,{"$f":"IFERROR(G3*H3,\"\")","v":0},"المستودع","مكتب 4"]
["",null,null,null,null,null,null,null,0]
["",null,null,null,null,null,null,null,0,null,null,null,null,null,"Home"]
["",null,null,null,null,null,null,null,0]
["",null,null,null,null,null,null,null,0]
["",null,null,null,null,null,null,null,0]
["",null,null,null,null,null,null,null,0]
["",null,null,null,null,null,null,null,0]
["",null,null,null,null,null,null,null,0]
["",null,null,null,null,null,null,null,0]
["",null,null,null,null,null,null,null,0]
["",null,null,null,null,null,null,null,0]
["",null,null,null,null,null,null,null,0]
["",null,null,null,null,null,null,null,0]
["",null,null,null,null,null,null,null,0]
["",null,null,null,null,null,null,null,0]
["",null,null,null,null,null,null,null,0]
["",null,null,null,null,null,null,null,0]
["",null,null,null,null,null,null,null,0]
["",null,null,null,null,null,null,null,0]
["",null,null,null,null,null,null,null,0]
["",null,null,null,null,null,null,null,0]
["",null,null,null,null,null,null,null,0]
["",null,null,null,null,null,null,null,0]
["",null,null,null,null,null,null,null,0]
["",null,null,null,null,null,null,null,0]
["",null,null,null,null,null,null,null,0]
["",null,null,null,null,null,null,null,0]
["",null,null,null,null,null,null,null,0]
["",null,null,null,null,null,null,null,0]
["",null,null,null,null,null,null,null,0]
["",null,null,null,null,null,null,null,0]
["",null,null,null,null,null,null,null,0]
["",null,null,null,null,null,null,null,0]
["",null,null,null,null,null,null,null,0]
["",null,null,null,null,null,null,null,0]
["",null,null,null,null,null,null,null,0]
["",null,null,null,null,null,null,null,0]
["",null,null,null,null,null,null,null,0]
["",null,null,null,null,null,null,null,0]
["",null,null,null,null,null,null,null,0]
["",null,null,null,null,null,null,null,0]
["",null,null,null,null,null,null,null,0]
["",null,null,null,null,null,null,null,0]
["",null,null,null,null,null,null,null,0]
["",null,null,null,null,null,null,null,0]
["",null,null,null,null,null,null,null,0]
["",null,null,null,null,null,null,null,0]
["",null,null,null,null,null,null,null,0]
["",null,null,null,null,null,null,null,0]
["",null,null,null,null,null,null,null,0]
["",null,null,null,null,null,null,null,0]
["",null,null,null,null,null,null,null,0]
["",null,null,null,null,null,null,null,0]
["",null,null,null,null,null,null,null,0]
["",null,null,null,null,null,null,null,0]
["",null,null,null,null,null,null,null,0]
["",null,null,null,null,null,null,null,0]
["",null,null,null,null,null,null,null,0]
["",null,null,null,null,null,null,null,0]
["",null,null,null,null,null,null,null,0]
["",null,null,null,null,null,null,null,0]
["",null,null,null,null,null,null,null,0]
["",null,null,null,null,null,null,null,0]
[{"$f":"IF(B67=\"\",\"\",ROW()-1)","v":""},null,null,null,null,null,null,null,{"$f":"IFERROR(G67*H67,\"\")","v":0}]
["",null,null,null,null,null,null,null,0]
["",null,null,null,null,null,null,null,0]
["",null,null,null,null,null,null,null,0]
["",null,null,null,null,null,null,null,0]
["",null,null,null,null,null,null,null,0]
["",null,null,null,null,null,null,null,0]
["",null,null,null,null,null,null,null,0]
["",null,null,null,null,null,null,null,0]
["",null,null,null,null,null,null,null,0]
["",null,null,null,null,null,null,null,0]
["",null,null,null,null,null,null,null,0]
["",null,null,null,null,null,null,null,0]
["",null,null,null,null,null,null,null,0]
["",null,null,null,null,null,null,null,0]
["",null,null,null,null,null,null,null,0]
["",null,null,null,null,null,null,null,0]
["",null,null,null,null,null,null,null,0]
["",null,null,null,null,null,null,null,0]
["",null,null,null,null,null,null,null,0]
["",null,null,null,null,null,null,null,0]
["",null,null,null,null,null,null,null,0]
["",null,null,null,null,null,null,null,0]
["",null,null,null,null,null,null,null,0]
["",null,null,null,null,null,null,null,0]
["",null,null,null,null,null,null,null,0]
["",null,null,null,null,null,null,null,0]
["",null,null,null,null,null,null,null,0]
["",null,null,null,null,null,null,null,0]
["",null,null,null,null,null,null,null,0]
["",null,null,null,null,null,null,null,0]
["",null,null,null,null,null,null,null,0]
["",null,null,null,null,null,null,null,0]
["",null,null,null,null,null,null,null,0]
["",null,null,null,null,null,null,null,0]
["",null,null,null,null,null,null,null,0]
["",null,null,null,null,null,null,null,0]
["",null,null,null,null,null,null,null,0]
["",null,null,null,null,null,null,null,0]
["",null,null,null,null,null,null,null,0]
["",null,null,null,null,null,null,null,0]
["",null,null,null,null,null,null,null,0]
["",null,null,null,null,null,null,null,0]
["",null,null,null,null,null,null,null,0]
["",null,null,null,null,null,null,null,0]
["",null,null,null,null,null,null,null,0]
["",null,null,null,null,null,null,null,0]
["",null,null,null,null,null,null,null,0]
["",null,null,null,null,null,null,null,0]
["",null,null,null,null,null,null,null,0]
["",null,null,null,null,null,null,null,0]
["",null,null,null,null,null,null,null,0]
["",null,null,null,null,null,null,null,0]
["",null,null,null,null,null,null,null,0]
["",null,null,null,null,null,null,null,0]
["",null,null,null,null,null,null,null,0]
["",null,null,null,null,null,null,null,0]
["",null,null,null,null,null,null,null,0]
["",null,null,null,null,null,null,null,0]
["",null,null,null,null,null,null,null,0]
["",null,null,null,null,null,null,null,0]
["",null,null,null,null,null,null,null,0]
["",null,null,null,null,null,null,null,0]
["",null,null,null,null,null,null,null,0]
[{"$f":"IF(B131=\"\",\"\",ROW()-1)","v":""},null,null,null,null,null,null,null,{"$f":"IFERROR(G131*H131,\"\")","v":0}]
["",null,null,null,null,null,null,null,0]
["",null,null,null,null,null,null,null,0]
["",null,null,null,null,null,null,null,0]
["",null,null,null,null,null,null,null,0]
["",null,null,null,null,null,null,null,0]
["",null,null,null,null,null,null,null,0]
["",null,null,null,null,null,null,null,0]
["",null,null,null,null,null,null,null,0]
["",null,null,null,null,null,null,null,0]
["",null,null,null,null,null,null,null,0]
["",null,null,null,null,null,null,null,0]
["",null,null,null,null,null,null,null,0]
["",null,null,null,null,null,null,null,0]
["",null,null,null,null,null,null,null,0]
["",null,null,null,null,null,null,null,0]
["",null,null,null,null,null,null,null,0]
["",null,null,null,null,null,null,null,0]
["",null,null,null,null,null,null,null,0]
["",null,null,null,null,null,null,null,0]
["",null,null,null,null,null,null,null,0]
["",null,null,null,null,null,null,null,0]
["",null,null,null,null,null,null,null,0]
["",null,null,null,null,null,null,null,0]
["",null,null,null,null,null,null,null,0]
["",null,null,null,null,null,null,null,0]
["",null,null,null,null,null,null,null,0]
["",null,null,null,null,null,null,null,0]
["",null,null,null,null,null,null,null,0]
["",null,null,null,null,null,null,null,0]
["",null,null,null,null,null,null,null,0]
["",null,null,null,null,null,null,null,0]
["",null,null,null,null,null,null,null,0]
["",null,null,null,null,null,null,null,0]
["",null,null,null,null,null,null,null,0]
["",null,null,null,null,null,null,null,0]
["",null,null,null,null,null,null,null,0]
["",null,null,null,null,null,null,null,0]
["",null,null,null,null,null,null,null,0]
["",null,null,null,null,null,null,null,0]
["",null,null,null,null,null,null,null,0]
["",null,null,null,null,null,null,null,0]
["",null,null,null,null,null,null,null,0]
["",null,null,null,null,null,null,null,0]
["",null,null,null,null,null,null,null,0]
["",null,null,null,null,null,null,null,0]
["",null,null,null,null,null,null,null,0]
["",null,null,null,null,null,null,null,0]
["",null,null,null,null,null,null,null,0]
["",null,null,null,null,null,null,null,0]
["",null,null,null,null,null,null,null,0]
["",null,null,null,null,null,null,null,0]
["",null,null,null,null,null,null,null,0]
["",null,null,null,null,null,null,null,0]
["",null,null,null,null,null,null,null,0]
["",null,null,null,null,null,null,null,0]
["",null,null,null,null,null,null,null,0]
["",null,null,null,null,null,null,null,0]
["",null,null,null,null,null,null,null,0]
["",null,null,null,null,null,null,null,0]
["",null,null,null,null,null,null,null,0]
["",null,null,null,null,null,null,null,0]
["",null,null,null,null,null,null,null,0]
["",null,null,null,null,null,null,null,0]
[{"$f":"IF(B195=\"\",\"\",ROW()-1)","v":""},null,null,null,null,null,null,null,{"$f":"IFERROR(G195*H195,\"\")","v":0}]
["",null,null,null,null,null,null,null,0]
["",null,null,null,null,null,null,null,0]
["",null,null,null,null,null,null,null,0]
["",null,null,null,null,null,null,null,0]
["",null,null,null,null,null,null,null,0]
["",null,null,null,null,null,null,null,0]
["",null,null,null,null,null,null,null,0]
["",null,null,null,null,null,null,null,0]
["",null,null,null,null,null,null,null,0]
["",null,null,null,null,null,null,null,0]
["",null,null,null,null,null,null,null,0]
["",null,null,null,null,null,null,null,0]
["",null,null,null,null,null,null,null,0]
["",null,null,null,null,null,null,null,0]
["",null,null,null,null,null,null,null,0]
["",null,null,null,null,null,null,null,0]
["",null,null,null,null,null,null,null,0]
["",null,null,null,null,null,null,null,0]
["",null,null,null,null,null,null,null,0]
["",null,null,null,null,null,null,null,0]
["",null,null,null,null,null,null,null,0]
["",null,null,null,null,null,null,null,0]
["",null,null,null,null,null,null,null,0]
["",null,null,null,null,null,null,null,0]
["",null,null,null,null,null,null,null,0]
["",null,null,null,null,null,null,null,0]
["",null,null,null,null,null,null,null,0]
["",null,null,null,null,null,null,null,0]
["",null,null,null,null,null,null,null,0]
["",null,null,null,null,null,null,null,0]
["",null,null,null,null,null,null,null,0]
["",null,null,null,null,null,null,null,0]
["",null,null,null,null,null,null,null,0]
["",null,null,null,null,null,null,null,0]
["",null,null,null,null,null,null,null,0]
["",null,null,null,null,null,null,null,0]
["",null,null,null,null,null,null,null,0]
["",null,null,null,null,null,null,null,0]
["",null,null,null,null,null,null,null,0]
["",null,null,null,null,null,null,null,0]
["",null,null,null,null,null,null,null,0]
["",null,null,null,null,null,null,null,0]
["",null,null,null,null,null,null,null,0]
["",null,null,null,null,null,null,null,0]
["",null,null,null,null,null,null,null,0]
["",null,null,null,null,null,null,null,0]
["",null,null,null,null,null,null,null,0]
["",null,null,null,null,null,null,null,0]
["",null,null,null,null,null,null,null,0]
["",null,null,null,null,null,null,null,0]
["",null,null,null,null,null,null,null,0]
["",null,null,null,null,null,null,null,0]
["",null,null,null,null,null,null,null,0]
["",null,null,null,null,null,null,null,0]
["",null,null,null,null,null,null,null,0]
["",null,null,null,null,null,null,null,0]
["",null,null,null,null,null,null,null,0]
["",null,null,null,null,null,null,null,0]
["",null,null,null,null,null,null,null,0]
["",null,null,null,null,null,null,null,0]
["",null,null,null,null,null,null,null,0]
["",null,null,null,null,null,null,null,0]
["",null,null,null,null,null,null,null,0]
[{"$f":"IF(B259=\"\",\"\",ROW()-1)","v":""},null,null,null,null,null,null,null,{"$f":"IFERROR(G259*H259,\"\")","v":0}]
["",null,null,null,null,null,null,null,0]
["",null,null,null,null,null,null,null,0]
["",null,null,null,null,null,null,null,0]
["",null,null,null,null,null,null,null,0]
["",null,null,null,null,null,null,null,0]
["",null,null,null,null,null,null,null,0]
["",null,null,null,null,null,null,null,0]
["",null,null,null,null,null,null,null,0]
["",null,null,null,null,null,null,null,0]
["",null,null,null,null,null,null,null,0]
["",null,null,null,null,null,null,null,0]
["",null,null,null,null,null,null,null,0]
["",null,null,null,null,null,null,null,0]
["",null,null,null,null,null,null,null,0]
["",null,null,null,null,null,null,null,0]
["",null,null,null,null,null,null,null,0]
["",null,null,null,null,null,null,null,0]
["",null,null,null,null,null,null,null,0]
["",null,null,null,null,null,null,null,0]
["",null,null,null,null,null,null,null,0]
["",null,null,null,null,null,null,null,0]
["",null,null,null,null,null,null,null,0]
["",null,null,null,null,null,null,null,0]
["",null,null,null,null,null,null,null,0]
["",null,null,null,null,null,null,null,0]
["",null,null,null,null,null,null,null,0]
["",null,null,null,null,null,null,null,0]
["",null,null,null,null,null,null,null,0]
["",null,null,null,null,null,null,null,0]
["",null,null,null,null,null,null,null,0]
["",null,null,null,null,null,null,null,0]
["",null,null,null,null,null,null,null,0]
["",null,null,null,null,null,null,null,0]
["",null,null,null,null,null,null,null,0]
["",null,null,null,null,null,null,null,0]
["",null,null,null,null,null,null,null,0]
["",null,null,null,null,null,null,null,0]
["",null,null,null,null,null,null,null,0]
["",null,null,null,null,null,null,null,0]
["",null,null,null,null,null,null,null,0]
["",null,null,null,null,null,null,null,0]
["",null,null,null,null,null,null,null,0]
["",null,null,null,null,null,null,null,0]
["",null,null,null,null,null,null,null,0]
["",null,null,null,null,null,null,null,0]
["",null,null,null,null,null,null,null,0]
["",null,null,null,null,null,null,null,0]
["",null,null,null,null,null,null,null,0]
["",null,null,null,null,null,null,null,0]
["",null,null,null,null,null,null,null,0]
["",null,null,null,null,null,null,null,0]
["",null,null,null,null,null,null,null,0]
["",null,null,null,null,null,null,null,0]
["",null,null,null,null,null,null,null,0]
["",null,null,null,null,null,null,null,0]
["",null,null,null,null,null,null,null,0]
["",null,null,null,null,null,null,null,0]
["",null,null,null,null,null,null,null,0]
["",null,null,null,null,null,null,null,0]
["",null,null,null,null,null,null,null,0]
["",null,null,null,null,null,null,null,0]
["",null,null,null,null,null,null,null,0]
["",null,null,null,null,null,null,null,0]
[{"$f":"IF(B323=\"\",\"\",ROW()-1)","v":""},null,null,null,null,null,null,null,{"$f":"IFERROR(G323*H323,\"\")","v":0}]
["",null,null,null,null,null,null,null,0]
["",null,null,null,null,null,null,null,0]
["",null,null,null,null,null,null,null,0]
["",null,null,null,null,null,null,null,0]
["",null,null,null,null,null,null,null,0]
["",null,null,null,null,null,null,null,0]
["",null,null,null,null,null,null,null,0]
["",null,null,null,null,null,null,null,0]
["",null,null,null,null,null,null,null,0]
["",null,null,null,null,null,null,null,0]
["",null,null,null,null,null,null,null,0]
["",null,null,null,null,null,null,null,0]
["",null,null,null,null,null,null,null,0]
["",null,null,null,null,null,null,null,0]
["",null,null,null,null,null,null,null,0]
["",null,null,null,null,null,null,null,0]
["",null,null,null,null,null,null,null,0]
["",null,null,null,null,null,null,null,0]
["",null,null,null,null,null,null,null,0]
["",null,null,null,null,null,null,null,0]
["",null,null,null,null,null,null,null,0]
["",null,null,null,null,null,null,null,0]
["",null,null,null,null,null,null,null,0]
["",null,null,null,null,null,null,null,0]
["",null,null,null,null,null,null,null,0]
["",null,null,null,null,null,null,null,0]
["",null,null,null,null,null,null,null,0]
["",null,null,null,null,null,null,null,0]
["",null,null,null,null,null,null,null,0]
["",null,null,null,null,null,null,null,0]
["",null,null,null,null,null,null,null,0]
["",null,null,null,null,null,null,null,0]
["",null,null,null,null,null,null,null,0]
["",null,null,null,null,null,null,null,0]
["",null,null,null,null,null,null,null,0]
["",null,null,null,null,null,null,null,0]
["",null,null,null,null,null,null,null,0]
["",null,null,null,null,null,null,null,0]
["",null,null,null,null,null,null,null,0]
["",null,null,null,null,null,null,null,0]
["",null,null,null,null,null,null,null,0]
["",null,null,null,null,null,null,null,0]
["",null,null,null,null,null,null,null,0]
["",null,null,null,null,null,null,null,0]
["",null,null,null,null,null,null,null,0]
["",null,null,null,null,null,null,null,0]
["",null,null,null,null,null,null,null,0]
["",null,null,null,null,null,null,null,0]
["",null,null,null,null,null,null,null,0]
["",null,null,null,null,null,null,null,0]
["",null,null,null,null,null,null,null,0]
["",null,null,null,null,null,null,null,0]
["",null,null,null,null,null,null,null,0]
["",null,null,null,null,null,null,null,0]
["",null,null,null,null,null,null,null,0]
["",null,null,null,null,null,null,null,0]
["",null,null,null,null,null,null,null,0]
["",null,null,null,null,null,null,null,0]
["",null,null,null,null,null,null,null,0]
["",null,null,null,null,null,null,null,0]
["",null,null,null,null,null,null,null,0]
["",null,null,null,null,null,null,null,0]
["",null,null,null,null,null,null,null,0]
[{"$f":"IF(B387=\"\",\"\",ROW()-1)","v":""},null,null,null,null,null,null,null,{"$f":"IFERROR(G387*H387,\"\")","v":0}]
["",null,null,null,null,null,null,null,0]
["",null,null,null,null,null,null,null,0]
["",null,null,null,null,null,null,null,0]
["",null,null,null,null,null,null,null,0]
["",null,null,null,null,null,null,null,0]
["",null,null,null,null,null,null,null,0]
["",null,null,null,null,null,null,null,0]
["",null,null,null,null,null,null,null,0]
["",null,null,null,null,null,null,null,0]
["",null,null,null,null,null,null,null,0]
["",null,null,null,null,null,null,null,0]
["",null,null,null,null,null,null,null,0]
["",null,null,null,null,null,null,null,0]
["",null,null,null,null,null,null,null,0]
["",null,null,null,null,null,null,null,0]
["",null,null,null,null,null,null,null,0]
["",null,null,null,null,null,null,null,0]
["",null,null,null,null,null,null,null,0]
["",null,null,null,null,null,null,null,0]
["",null,null,null,null,null,null,null,0]
["",null,null,null,null,null,null,null,0]
["",null,null,null,null,null,null,null,0]
["",null,null,null,null,null,null,null,0]
["",null,null,null,null,null,null,null,0]
["",null,null,null,null,null,null,null,0]
["",null,null,null,null,null,null,null,0]
["",null,null,null,null,null,null,null,0]
["",null,null,null,null,null,null,null,0]
["",null,null,null,null,null,null,null,0]
["",null,null,null,null,null,null,null,0]
["",null,null,null,null,null,null,null,0]
["",null,null,null,null,null,null,null,0]
["",null,null,null,null,null,null,null,0]
["",null,null,null,null,null,null,null,0]
["",null,null,null,null,null,null,null,0]
["",null,null,null,null,null,null,null,0]
["",null,null,null,null,null,null,null,0]
["",null,null,null,null,null,null,null,0]
["",null,null,null,null,null,null,null,0]
["",null,null,null,null,null,null,null,0]
["",null,null,null,null,null,null,null,0]
["",null,null,null,null,null,null,null,0]
["",null,null,null,null,null,null,null,0]
["",null,null,null,null,null,null,null,0]
["",null,null,null,null,null,null,null,0]
["",null,null,null,null,null,null,null,0]
["",null,null,null,null,null,null,null,0]
["",null,null,null,null,null,null,null,0]
["",null,null,null,null,null,null,null,0]
["",null,null,null,null,null,null,null,0]
["",null,null,null,null,null,null,null,0]
["",null,null,null,null,null,null,null,0]
["",null,null,null,null,null,null,null,0]
["",null,null,null,null,null,null,null,0]
["",null,null,null,null,null,null,null,0]
["",null,null,null,null,null,null,null,0]
["",null,null,null,null,null,null,null,0]
["",null,null,null,null,null,null,null,0]
["",null,null,null,null,null,null,null,0]
["",null,null,null,null,null,null,null,0]
["",null,null,null,null,null,null,null,0]
["",null,null,null,null,null,null,null,0]
["",null,null,null,null,null,null,null,0]
[{"$f":"IF(B451=\"\",\"\",ROW()-1)","v":""},null,null,null,null,null,null,null,{"$f":"IFERROR(G451*H451,\"\")","v":0}]
["",null,null,null,null,null,null,null,0]
["",null,null,null,null,null,null,null,0]
["",null,null,null,null,null,null,null,0]
["",null,null,null,null,null,null,null,0]
["",null,null,null,null,null,null,null,0]
["",null,null,null,null,null,null,null,0]
["",null,null,null,null,null,null,null,0]
["",null,null,null,null,null,null,null,0]
["",null,null,null,null,null,null,null,0]
["",null,null,null,null,null,null,null,0]
["",null,null,null,null,null,null,null,0]
["",null,null,null,null,null,null,null,0]
["",null,null,null,null,null,null,null,0]
["",null,null,null,null,null,null,null,0]
["",null,null,null,null,null,null,null,0]
["",null,null,null,null,null,null,null,0]
["",null,null,null,null,null,null,null,0]
["",null,null,null,null,null,null,null,0]
["",null,null,null,null,null,null,null,0]
["",null,null,null,null,null,null,null,0]
["",null,null,null,null,null,null,null,0]
["",null,null,null,null,null,null,null,0]
["",null,null,null,null,null,null,null,0]
["",null,null,null,null,null,null,null,0]
["",null,null,null,null,null,null,null,0]
["",null,null,null,null,null,null,null,0]
["",null,null,null,null,null,null,null,0]
["",null,null,null,null,null,null,null,0]
["",null,null,null,null,null,null,null,0]
["",null,null,null,null,null,null,null,0]
["",null,null,null,null,null,null,null,0]
["",null,null,null,null,null,null,null,0]
[null,null,null,null,null,null,null,null,0]

{"sheet":"الجهات واماكن تواجد","index":2,"n_rows":303,"n_cols":10,"rows_kept":303,"cut":false,"hidden":false,"merged":[]}
[]
[]
["مسلسل","الجهة المستلمة","مسلسل","أماكن تواجد الأصل","مسلسل","الحالة الفتية"]
[1,"المستودع",1,"المستودع التقني",1,"جديد"]
[2,"جهة2",2,"مكتب 2",2,"مستعمل بحالة جيدة","Home"]
[3,"جهة3",3,"مكتب 3",3,"بحاجة الى صيانة"]
[4,"جهة4",4,"مكتب 4",4,"تالف"]
[5,"جهة5",5,"مكتب 5",null,null,null,"الرمز الخاص بالاصل","اسم الأصل","وصف الأصل"]
[6,"جهة6",6,"مكتب 6",null,null,null,"L01","لابتوب ","cori3-ram4-hdd500-dell"]
[7,"جهة7",7,"مكتب 7"]
[8,"جهة8",8,"مكتب 8"]
[9,"جهة9",9,"مكتب 9"]
[10,"جهة10",10,"مكتب 10"]
[11,"جهة11",11,"مكتب 11"]
[12,"جهة12",12,"مكتب 12"]
[13,"جهة13",13,"مكتب 13"]
[14,"جهة14",14,"مكتب 14"]
[15,"جهة15",15,"مكتب 15"]
[16,"جهة16",16,"مكتب 16"]
[17,"جهة17",17,"مكتب 17"]
[18,"جهة18",18,"مكتب 18"]
[19,"جهة19",19,"مكتب 19"]
[20,"جهة20",20,"مكتب 20"]
[21,"جهة21",21,"مكتب 21"]
[22,"جهة22",22,"مكتب 22"]
[23,"جهة23",23,"مكتب 23"]
[24,"جهة24",24,"مكتب 24"]
[25,"جهة25",25,"مكتب 25"]
[26,"جهة26",26,"مكتب 26"]
[27,"جهة27",27,"مكتب 27"]
[28,"جهة28",28,"مكتب 28"]
[29,"جهة29",29,"مكتب 29"]
[30,"جهة30",30,"مكتب 30"]
[31,"جهة31",31,"مكتب 31"]
[32,"جهة32",32,"مكتب 32"]
[33,"جهة33",33,"مكتب 33"]
[34,"جهة34",34,"مكتب 34"]
[35,"جهة35",35,"مكتب 35"]
[36,"جهة36",36,"مكتب 36"]
[37,"جهة37",37,"مكتب 37"]
[38,"جهة38",38,"مكتب 38"]
[39,"جهة39",39,"مكتب 39"]
[null,null,40,"مكتب 40"]
[null,null,41,"مكتب 41"]
[null,null,42,"مكتب 42"]
[null,null,43,"مكتب 43"]
[null,null,44,"مكتب 44"]
[null,null,45,"مكتب 45"]
[null,null,46,"مكتب 46"]
[null,null,47,"مكتب 47"]
[null,null,48,"مكتب 48"]
[null,null,49,"مكتب 49"]
[null,null,50,"مكتب 50"]
[null,null,51,"مكتب 51"]
[null,null,52,"مكتب 52"]
[null,null,53,"مكتب 53"]
[null,null,54,"مكتب 54"]
[null,null,55,"مكتب 55"]
[null,null,56,"مكتب 56"]
[null,null,57,"مكتب 57"]
[null,null,58,"مكتب 58"]
[null,null,59,"مكتب 59"]
[null,null,60,"مكتب 60"]
[null,null,61,"مكتب 61"]
[null,null,62,"مكتب 62"]
[null,null,63,"مكتب 63"]
[null,null,64,"مكتب 64"]
[null,null,65,"مكتب 65"]
[null,null,66,"مكتب 66"]
[null,null,67,"مكتب 67"]
[null,null,68,"مكتب 68"]
[null,null,69,"مكتب 69"]
[null,null,70,"مكتب 70"]
[null,null,71,"مكتب 71"]
[null,null,72,"مكتب 72"]
[null,null,73,"مكتب 73"]
[null,null,74,"مكتب 74"]
[null,null,75,"مكتب 75"]
[null,null,76,"مكتب 76"]
[null,null,77,"مكتب 77"]
[null,null,78,"مكتب 78"]
[null,null,79,"مكتب 79"]
[null,null,80,"مكتب 80"]
[null,null,81,"مكتب 81"]
[null,null,82,"مكتب 82"]
[null,null,83,"مكتب 83"]
[null,null,84,"مكتب 84"]
[null,null,85,"مكتب 85"]
[null,null,86,"مكتب 86"]
[null,null,87,"مكتب 87"]
[null,null,88,"مكتب 88"]
[null,null,89,"مكتب 89"]
[null,null,90,"مكتب 90"]
[null,null,91,"مكتب 91"]
[null,null,92,"مكتب 92"]
[null,null,93,"مكتب 93"]
[null,null,94,"مكتب 94"]
[null,null,95,"مكتب 95"]
[null,null,96,"مكتب 96"]
[null,null,97,"مكتب 97"]
[null,null,98,"مكتب 98"]
[null,null,99,"مكتب 99"]
[null,null,100,"مكتب 100"]
[null,null,101,"مكتب 101"]
[null,null,102,"مكتب 102"]
[null,null,103,"مكتب 103"]
[null,null,104,"مكتب 104"]
[null,null,105,"مكتب 105"]
[null,null,106,"مكتب 106"]
[null,null,107,"مكتب 107"]
[null,null,108,"مكتب 108"]
[null,null,109,"مكتب 109"]
[null,null,110,"مكتب 110"]
[null,null,111,"مكتب 111"]
[null,null,112,"مكتب 112"]
[null,null,113,"مكتب 113"]
[null,null,114,"مكتب 114"]
[null,null,115,"مكتب 115"]
[null,null,116,"مكتب 116"]
[null,null,117,"مكتب 117"]
[null,null,118,"مكتب 118"]
[null,null,119,"مكتب 119"]
[null,null,120,"مكتب 120"]
[null,null,121,"مكتب 121"]
[null,null,122,"مكتب 122"]
[null,null,123,"مكتب 123"]
[null,null,124,"مكتب 124"]
[null,null,125,"مكتب 125"]
[null,null,126,"مكتب 126"]
[null,null,127,"مكتب 127"]
[null,null,128,"مكتب 128"]
[null,null,129,"مكتب 129"]
[null,null,130,"مكتب 130"]
[null,null,131,"مكتب 131"]
[null,null,132,"مكتب 132"]
[null,null,133,"مكتب 133"]
[null,null,134,"مكتب 134"]
[null,null,135,"مكتب 135"]
[null,null,136,"مكتب 136"]
[null,null,137,"مكتب 137"]
[null,null,138,"مكتب 138"]
[null,null,139,"مكتب 139"]
[null,null,140,"مكتب 140"]
[null,null,141,"مكتب 141"]
[null,null,142,"مكتب 142"]
[null,null,143,"مكتب 143"]
[null,null,144,"مكتب 144"]
[null,null,145,"مكتب 145"]
[null,null,146,"مكتب 146"]
[null,null,147,"مكتب 147"]
[null,null,148,"مكتب 148"]
[null,null,149,"مكتب 149"]
[null,null,150,"مكتب 150"]
[null,null,151,"مكتب 151"]
[null,null,152,"مكتب 152"]
[null,null,153,"مكتب 153"]
[null,null,154,"مكتب 154"]
[null,null,155,"مكتب 155"]
[null,null,156,"مكتب 156"]
[null,null,157,"مكتب 157"]
[null,null,158,"مكتب 158"]
[null,null,159,"مكتب 159"]
[null,null,160,"مكتب 160"]
[null,null,161,"مكتب 161"]
[null,null,162,"مكتب 162"]
[null,null,163,"مكتب 163"]
[null,null,164,"مكتب 164"]
[null,null,165,"مكتب 165"]
[null,null,166,"مكتب 166"]
[null,null,167,"مكتب 167"]
[null,null,168,"مكتب 168"]
[null,null,169,"مكتب 169"]
[null,null,170,"مكتب 170"]
[null,null,171,"مكتب 171"]
[null,null,172,"مكتب 172"]
[null,null,173,"مكتب 173"]
[null,null,174,"مكتب 174"]
[null,null,175,"مكتب 175"]
[null,null,176,"مكتب 176"]
[null,null,177,"مكتب 177"]
[null,null,178,"مكتب 178"]
[null,null,179,"مكتب 179"]
[null,null,180,"مكتب 180"]
[null,null,181,"مكتب 181"]
[null,null,182,"مكتب 182"]
[null,null,183,"مكتب 183"]
[null,null,184,"مكتب 184"]
[null,null,185,"مكتب 185"]
[null,null,186,"مكتب 186"]
[null,null,187,"مكتب 187"]
[null,null,188,"مكتب 188"]
[null,null,189,"مكتب 189"]
[null,null,190,"مكتب 190"]
[null,null,191,"مكتب 191"]
[null,null,192,"مكتب 192"]
[null,null,193,"مكتب 193"]
[null,null,194,"مكتب 194"]
[null,null,195,"مكتب 195"]
[null,null,196,"مكتب 196"]
[null,null,197,"مكتب 197"]
[null,null,198,"مكتب 198"]
[null,null,199,"مكتب 199"]
[null,null,200,"مكتب 200"]
[null,null,201,"مكتب 201"]
[null,null,202,"مكتب 202"]
[null,null,203,"مكتب 203"]
[null,null,204,"مكتب 204"]
[null,null,205,"مكتب 205"]
[null,null,206,"مكتب 206"]
[null,null,207,"مكتب 207"]
[null,null,208,"مكتب 208"]
[null,null,209,"مكتب 209"]
[null,null,210,"مكتب 210"]
[null,null,211,"مكتب 211"]
[null,null,212,"مكتب 212"]
[null,null,213,"مكتب 213"]
[null,null,214,"مكتب 214"]
[null,null,215,"مكتب 215"]
[null,null,216,"مكتب 216"]
[null,null,217,"مكتب 217"]
[null,null,218,"مكتب 218"]
[null,null,219,"مكتب 219"]
[null,null,220,"مكتب 220"]
[null,null,221,"مكتب 221"]
[null,null,222,"مكتب 222"]
[null,null,223,"مكتب 223"]
[null,null,224,"مكتب 224"]
[null,null,225,"مكتب 225"]
[null,null,226,"مكتب 226"]
[null,null,227,"مكتب 227"]
[null,null,228,"مكتب 228"]
[null,null,229,"مكتب 229"]
[null,null,230,"مكتب 230"]
[null,null,231,"مكتب 231"]
[null,null,232,"مكتب 232"]
[null,null,233,"مكتب 233"]
[null,null,234,"مكتب 234"]
[null,null,235,"مكتب 235"]
[null,null,236,"مكتب 236"]
[null,null,237,"مكتب 237"]
[null,null,238,"مكتب 238"]
[null,null,239,"مكتب 239"]
[null,null,240,"مكتب 240"]
[null,null,241,"مكتب 241"]
[null,null,242,"مكتب 242"]
[null,null,243,"مكتب 243"]
[null,null,244,"مكتب 244"]
[null,null,245,"مكتب 245"]
[null,null,246,"مكتب 246"]
[null,null,247,"مكتب 247"]
[null,null,248,"مكتب 248"]
[null,null,249,"مكتب 249"]
[null,null,250,"مكتب 250"]
[null,null,251,"مكتب 251"]
[null,null,252,"مكتب 252"]
[null,null,253,"مكتب 253"]
[null,null,254,"مكتب 254"]
[null,null,255,"مكتب 255"]
[null,null,256,"مكتب 256"]
[null,null,257,"مكتب 257"]
[null,null,258,"مكتب 258"]
[null,null,259,"مكتب 259"]
[null,null,260,"مكتب 260"]
[null,null,261,"مكتب 261"]
[null,null,262,"مكتب 262"]
[null,null,263,"مكتب 263"]
[null,null,264,"مكتب 264"]
[null,null,265,"مكتب 265"]
[null,null,266,"مكتب 266"]
[null,null,267,"مكتب 267"]
[null,null,268,"مكتب 268"]
[null,null,269,"مكتب 269"]
[null,null,270,"مكتب 270"]
[null,null,271,"مكتب 271"]
[null,null,272,"مكتب 272"]
[null,null,273,"مكتب 273"]
[null,null,274,"مكتب 274"]
[null,null,275,"مكتب 275"]
[null,null,276,"مكتب 276"]
[null,null,277,"مكتب 277"]
[null,null,278,"مكتب 278"]
[null,null,279,"مكتب 279"]
[null,null,280,"مكتب 280"]
[null,null,281,"مكتب 281"]
[null,null,282,"مكتب 282"]
[null,null,283,"مكتب 283"]
[null,null,284,"مكتب 284"]
[null,null,285,"مكتب 285"]
[null,null,286,"مكتب 286"]
[null,null,287,"مكتب 287"]
[null,null,288,"مكتب 288"]
[null,null,289,"مكتب 289"]
[null,null,290,"مكتب 290"]
[null,null,291,"مكتب 291"]
[null,null,292,"مكتب 292"]
[null,null,293,"مكتب 293"]
[null,null,294,"مكتب 294"]
[null,null,295,"مكتب 295"]
[null,null,296,"مكتب 296"]
[null,null,297,"مكتب 297"]
[null,null,298,"مكتب 298"]
[null,null,299,"مكتب 299"]
[null,null,300,"مكتب 300"]

{"sheet":"المطلوب","index":3,"n_rows":7,"n_cols":14,"rows_kept":7,"cut":false,"hidden":false,"merged":[]}
[]
[1,"احتاج ادخال  سريع للقوائم المشروحة في الورقة الثانية"]
[2,"صفحة تقارير شاملة"," مثل استعلام عن الجرودات الموجودة في مكان تواجد معين او باسم شخص معين او جهة معينة",null,null,null,null,null,"مناسبة للطباعة مع وجود الشعار واسم المؤسسة",null,null,"وحيز للتوقيع او شرح امر معين",null,"من المحتمل تكون صفحات عديدة"]
[3,"في حال كانتة الجهة المستلمة المستودع او الحالة الفنية تالف تعتبر هذه الأصول رصيد في المخزن احتاج شيت يقوم بذلك "]
[4,"احتاج صفحة للعهدة بحيث أقوم بطباعة بطاقة عهدة باسم جهة معينة وشخص معين لكي يقوم بالتوقيع  هو وامين المخزن ورئيس القسم",null,null,null,null,null,null,"تشمل  الحقول من b الى I في جدول الجرد مع إمكانية وضع الشعار في الأعلى  واسم المؤسسة والتاريخ وهكذا"]
[5,"اذا امكن واجهة سلسة لهذا العمل"]
[6,"لدي عدة مستودعات مثل اثاث وفروشات و مستودع عدد وأدوات و ..الخ على نفس مبدأ العمل "]